bitfinex/quotes_SOLUSD_20250129
["timestamp","ask_amount","ask_price","bid_price","bid_amount"]
[1738115522217,20.0,229.7,229.65,8.70532616]
[1738115522539,82.5,229.69,229.64,8.70532616]
[1738115523142,82.5,229.69,229.65,4.3544]
[1738115524541,82.5,229.69,229.64,4.3546]
[1738115526322,82.5,229.69,229.64,13.05992616]
[1738115527246,82.5,229.69,229.65,8.70532616]
[1738115527840,82.5,229.69,229.65,13.05972616]
[1738115530650,82.5,229.69,229.64,8.70532616]
[1738115530848,82.5,229.69,229.64,13.05992616]
[1738115532949,8.70532616,229.77,229.69,7.8156]
[1738115533252,0.03,229.82,229.77,7.8156]
[1738115533446,0.03,229.82,229.81,8.70532616]
[1738115533640,0.03,229.82,229.79,8.70532616]
[1738115534736,0.03,229.82,229.8,4.3516]
[1738115535145,0.03,229.82,229.81,8.70532616]
[1738115536035,82.5,229.93,229.82,23.776884]
[1738115536257,82.5,229.93,229.87,4.3502]
[1738115536937,82.5,229.93,229.86,10.35192616]
[1738115537341,82.5,229.93,229.87,8.70532616]
[1738115537556,82.5,229.93,229.88,8.70532616]
[1738115537858,82.5,229.93,229.87,8.70532616]
[1738115541645,82.5,229.93,229.87,13.05552616]
[1738115541947,82.5,229.93,229.89,8.70532616]
[1738115544764,82.53,229.93,229.89,8.70532616]
[1738115545247,82.53,229.93,229.91,8.70532616]
[1738115546367,82.53,229.93,229.9,6.5114]
[1738115550066,82.53,229.93,229.87,8.70532616]
[1738115550863,82.53,229.93,229.87,13.05552616]
[1738115551071,82.53,229.93,229.89,8.70532616]
[1738115551362,82.53,229.93,229.87,8.70532616]
[1738115553778,91.23532616,229.93,229.86,1.6466]
[1738115554448,8.70532616,229.89,229.81,10.28412616]
[1738115554650,82.5,229.88,229.81,10.28412616]
[1738115555469,82.5,229.88,229.83,8.70532616]
[1738115556250,8.70532616,229.87,229.81,1.5788]
[1738115556658,8.70532616,229.87,229.8,6.3395]
[1738115556970,8.70532616,229.87,229.82,0.063]
[1738115557165,82.5,229.86,229.82,0.063]
[1738115557366,8.70532616,229.85,229.82,0.063]
[1738115560572,8.70532616,229.83,229.82,0.063]
[1738115566076,8.70532616,229.85,229.82,0.063]
[1738115570489,8.70532616,229.83,229.82,0.063]
[1738115571071,8.70532616,229.85,229.82,0.063]
[1738115572090,28.70532616,229.85,229.82,0.063]
[1738115574791,8.70532616,229.83,229.82,0.063]
[1738115575687,32.60770016,229.83,229.82,0.063]
[1738115579894,32.63770016,229.83,229.82,0.063]
[1738115584198,0.03,229.83,229.82,0.063]
[1738115589899,0.03,229.83,229.82,4.4142]
[1738115592182,0.03,229.83,229.82,0.063]
[1738115592382,8.73532616,229.83,229.82,0.063]
[1738115593900,32.51221016,229.83,229.82,0.063]
[1738115597390,32.63770016,229.83,229.82,0.063]
[1738115601589,8.73532616,229.83,229.82,0.063]
[1738115611396,32.63770016,229.83,229.82,0.063]
[1738115612915,43.902374,229.8,229.74,1.6188]
[1738115613094,8.70532616,229.77,229.74,1.6188]
[1738115613293,8.70532616,229.75,229.68,1.6143]
[1738115613713,8.70532616,229.74,229.68,5.9681]
[1738115614910,8.70532616,229.74,229.7,6.0967]
[1738115617711,82.5,229.73,229.7,6.0967]
[1738115617927,8.70532616,229.72,229.7,0.063]
[1738115621627,82.5,229.71,229.7,0.063]
[1738115621934,23.902374,229.71,229.7,0.063]
[1738115624950,23.902374,229.71,229.7,0.0001]
[1738115626033,23.902374,229.71,229.63,0.063]
[1738115626034,0.12549,229.66,229.63,0.063]
[1738115626340,32.48221016,229.64,229.63,0.063]
[1738115626714,32.60770016,229.64,229.63,0.063]
[1738115627147,33.0491774,229.64,229.63,0.063]
[1738115627318,34.0491774,229.64,229.63,0.063]
[1738115628647,52.60770016,229.6,229.59,0.063]
[1738115632769,53.0491774,229.6,229.59,0.063]
[1738115633343,0.12549,229.53,229.47,0.063]
[1738115633570,8.70532616,229.48,229.47,0.063]
[1738115634272,8.70532616,229.5,229.47,0.063]
[1738115636872,8.70532616,229.51,229.47,0.063]
[1738115637871,8.70532616,229.53,229.47,0.063]
[1738115638042,82.5,229.52,229.49,8.70532616]
[1738115639468,82.5,229.52,229.48,13.06292616]
[1738115640369,82.5,229.52,229.48,4.3576]
[1738115640958,82.5,229.52,229.5,8.70532616]
[1738115641162,82.5,229.57,229.51,6.6356]
[1738115642176,82.5,229.57,229.51,10.9926]
[1738115642471,82.5,229.57,229.52,1.65]
[1738115642786,82.5,229.56,229.52,1.65]
[1738115644048,82.5,229.56,229.52,6.0068]
[1738115644451,82.5,229.56,229.52,1.65]
[1738115647077,8.02646286,229.55,229.52,1.65]
[1738115647263,8.02646286,229.54,229.52,1.65]
[1738115647467,90.52646286,229.54,229.52,1.65]
[1738115648282,8.02646286,229.53,229.52,1.65]
[1738115648902,8.02646286,229.53,229.51,6.6356]
[1738115649173,8.02646286,229.52,229.51,6.6356]
[1738115649363,82.5,229.51,229.47,0.063]
[1738115649752,8.02646286,229.49,229.47,0.063]
[1738115650677,8.02646286,229.49,229.48,0.03]
[1738115652483,8.02646286,229.5,229.48,0.03]
[1738115653381,82.5,229.51,229.48,0.03]
[1738115653581,82.5,229.51,229.48,8.05646286]
[1738115654459,82.5,229.51,229.49,4.3574]
[1738115654985,0.063,229.57,229.49,4.3574]
[1738115654986,8.08946286,229.57,229.5,8.02646286]
[1738115655688,0.063,229.57,229.5,8.02646286]
[1738115655893,0.063,229.57,229.52,8.02646286]
[1738115656073,0.063,229.57,229.54,8.02646286]
[1738115656399,0.063,229.57,229.55,10.6882]
[1738115656600,0.063,229.57,229.56,8.02646286]
[1738115657790,0.063,229.57,229.55,10.6882]
[1738115658091,0.063,229.57,229.55,6.3321]
[1738115659390,12.53797302,229.56,229.49,7.7584]
[1738115660502,12.53797302,229.54,229.49,7.7584]
[1738115665183,82.5,229.53,229.49,7.7584]
[1738115665793,82.5,229.53,229.48,0.03]
[1738115665794,82.5,229.52,229.48,0.03]
[1738115665996,82.5,229.51,229.48,0.03]
[1738115666198,82.5,229.5,229.48,0.03]
[1738115668813,95.03797302,229.5,229.48,0.03]
[1738115669475,82.5,229.5,229.48,0.03]
[1738115671204,82.5,229.49,229.48,0.03]
[1738115691012,82.5,229.55,229.48,8.06098486]
[1738115691317,82.5,229.55,229.5,8.03098486]
[1738115691913,82.5,229.55,229.5,12.38818486]
[1738115696717,82.5,229.55,229.54,8.03098486]
[1738115697023,0.063,229.57,229.54,8.02402135]
[1738115697818,0.063,229.57,229.54,12.38042135]
[1738115699822,0.063,229.57,229.54,8.02402135]
[1738115700329,0.063,229.57,229.53,7.6298]
[1738115700527,20.063,229.57,229.52,8.02402135]
[1738115700729,28.08702135,229.57,229.49,8.02402135]
[1738115701030,82.5,229.56,229.49,8.02402135]
[1738115703537,90.52402135,229.55,229.48,7.7443]
[1738115704921,20.063,229.57,229.48,7.7443]
[1738115704922,8.02402135,229.53,229.48,7.7443]
[1738115705133,8.02402135,229.53,229.48,0.03]
[1738115705308,8.03110891,229.52,229.48,0.03]
[1738115706429,8.03110891,229.5,229.48,0.03]
[1738115706925,23.902374,229.49,229.48,0.03]
[1738115713532,31.94074103,229.49,229.48,0.03]
[1738115715843,8.16385703,229.49,229.48,0.03]
[1738115717148,31.94074103,229.49,229.48,0.03]
[1738115719347,32.38221827,229.49,229.48,0.03]
[1738115719650,64.53568639,229.49,229.48,0.03]
[1738115722045,32.38221827,229.49,229.48,0.03]
[1738115723326,8.16385703,229.49,229.48,0.03]
[1738115723845,31.94074103,229.49,229.48,0.03]
[1738115726673,8.16385703,229.49,229.48,0.03]
[1738115727333,0.063,229.57,229.48,16.06766703]
[1738115727545,0.063,229.57,229.52,8.03836703]
[1738115731555,8.03836703,229.55,229.48,16.06766703]
[1738115731947,20.0,229.56,229.48,16.06766703]
[1738115732154,8.10136703,229.57,229.48,20.42526703]
[1738115732653,8.10136703,229.57,229.5,8.03836703]
[1738115732846,0.063,229.57,229.52,8.03836703]
[1738115734345,0.063,229.57,229.48,14.3869]
[1738115734346,0.063,229.57,229.5,8.03836703]
[1738115736445,82.563,229.57,229.5,8.03836703]
[1738115737360,82.563,229.57,229.5,12.39556703]
[1738115737960,23.776884,229.56,229.5,8.03836703]
[1738115738139,23.776884,229.56,229.48,16.06766703]
[1738115738463,31.81525103,229.56,229.48,16.06766703]
[1738115738842,31.81525103,229.56,229.48,20.42526703]
[1738115739458,23.776884,229.56,229.5,8.03836703]
[1738115740863,82.563,229.57,229.5,12.39556703]
[1738115741044,82.563,229.57,229.52,8.03836703]
[1738115747471,82.563,229.57,229.51,8.03836703]
[1738115750349,82.563,229.57,229.54,8.03836703]
[1738115750563,82.563,229.57,229.55,8.03836703]
[1738115750961,82.563,229.57,229.56,15.70316703]
[1738115751253,12.3000715,229.66,229.56,48.85663515]
[1738115751455,12.3000715,229.66,229.61,8.03836703]
[1738115752553,23.776884,229.67,229.61,8.03836703]
[1738115753272,31.81525103,229.65,229.58,8.03836703]
[1738115753478,8.03836703,229.62,229.56,7.6648]
[1738115754072,8.03836703,229.61,229.56,7.6648]
[1738115754571,8.03836703,229.61,229.53,8.03836703]
[1738115755769,0.12549,229.6,229.53,8.03836703]
[1738115755973,31.81525103,229.59,229.52,9.61136703]
[1738115757072,23.776884,229.59,229.52,9.61136703]
[1738115757276,23.776884,229.59,229.53,8.03836703]
[1738115757457,8.03836703,229.64,229.57,8.03836703]
[1738115758177,23.776884,229.63,229.57,8.03836703]
[1738115758773,74.2298,229.65,229.59,8.03836703]
[1738115758970,74.2298,229.65,229.61,8.03836703]
[1738115759159,74.2298,229.65,229.64,8.03836703]
[1738115760572,74.2298,229.65,229.64,12.52747219]
[1738115761177,74.2298,229.65,229.63,12.52747219]
[1738115761376,74.2298,229.65,229.62,12.52747219]
[1738115763990,74.2298,229.65,229.62,12.52953604]
[1738115764685,74.2298,229.65,229.59,20.59353604]
[1738115764862,12.52953604,229.64,229.59,8.064]
[1738115765064,86.75933604,229.65,229.59,8.064]
[1738115765268,74.2298,229.65,229.59,20.59353604]
[1738115765481,74.2298,229.65,229.59,12.52953604]
[1738115765875,74.2298,229.65,229.6,12.52953604]
[1738115766176,74.2928,229.65,229.59,12.52953604]
[1738115766357,74.2928,229.65,229.6,12.52953604]
[1738115766972,74.2928,229.65,229.59,12.52953604]
[1738115767781,74.2928,229.65,229.62,12.52953604]
[1738115768287,74.2928,229.65,229.63,12.52953604]
[1738115769484,74.2928,229.65,229.62,12.52953604]
[1738115769791,74.2928,229.65,229.61,12.52953604]
[1738115770090,74.2928,229.65,229.6,16.88483604]
[1738115770690,74.2928,229.65,229.6,12.52953604]
[1738115774190,74.2928,229.65,229.6,12.53190782]
[1738115775092,74.2298,229.64,229.6,12.53190782]
[1738115778301,74.2298,229.64,229.6,16.88720782]
[1738115779276,74.2298,229.64,229.6,12.53190782]
[1738115779495,74.2298,229.64,229.54,1.5573]
[1738115779496,74.2298,229.64,229.62,12.53190782]
[1738115780592,74.2298,229.64,229.62,8.01877164]
[1738115780972,0.063,229.65,229.62,8.01877164]
[1738115782091,0.063,229.65,229.62,12.37367164]
[1738115784898,0.063,229.65,229.62,8.01877164]
[1738115785194,8.08177164,229.65,229.57,8.01877164]
[1738115785976,0.063,229.65,229.59,8.01877164]
[1738115786998,74.2298,229.64,229.59,8.01877164]
[1738115787701,74.2298,229.64,229.58,8.01877164]
[1738115787882,74.2298,229.63,229.56,8.01877164]
[1738115788192,8.01877164,229.6,229.53,14.66757164]
[1738115788505,8.01877164,229.6,229.53,19.02417164]
[1738115788889,8.01877164,229.61,229.54,8.01877164]
[1738115789884,8.01877164,229.61,229.57,0.03]
[1738115791311,82.24857164,229.62,229.57,0.03]
[1738115791694,8.01877164,229.61,229.57,0.03]
[1738115791890,8.01877164,229.58,229.57,0.03]
[1738115792193,82.24857164,229.6,229.57,0.03]
[1738115794025,74.2298,229.6,229.57,0.03]
[1738115801819,74.2298,229.59,229.57,0.03]
[1738115807703,74.2298,229.58,229.57,0.03]
[1738115808124,98.006684,229.58,229.57,0.03]
[1738115808326,106.15094564,229.58,229.57,0.03]
[1738115809408,98.132174,229.58,229.57,0.03]
[1738115810722,74.2298,229.58,229.57,0.03]
[1738115815629,98.006684,229.58,229.57,0.03]
[1738115816012,98.132174,229.58,229.57,0.03]
[1738115819745,23.902374,229.58,229.57,0.03]
[1738115823436,0.12549,229.56,229.52,0.03]
[1738115823643,23.776884,229.54,229.52,0.03]
[1738115823815,8.01877164,229.53,229.52,0.03]
[1738115824736,8.14426164,229.53,229.52,0.03]
[1738115827150,0.12549,229.53,229.52,0.03]
[1738115830246,31.92114564,229.53,229.52,0.03]
[1738115830949,23.902374,229.53,229.52,0.03]
[1738115831146,31.92114564,229.53,229.52,0.03]
[1738115845863,23.902374,229.53,229.52,0.03]
[1738115847261,31.92114564,229.53,229.52,0.03]
[1738115855573,23.776884,229.53,229.52,0.03]
[1738115855764,8.01877164,229.56,229.52,0.03]
[1738115856075,0.063,229.57,229.52,8.04877164]
[1738115856258,0.063,229.57,229.54,8.01877164]
[1738115856458,0.063,229.57,229.55,8.01877164]
[1738115857561,0.063,229.57,229.56,8.01877164]
[1738115859174,0.063,229.57,229.56,15.46107164]
[1738115860174,0.063,229.57,229.56,14.46107164]
[1738115860554,0.063,229.57,229.56,17.71521475]
[1738115862279,0.063,229.57,229.56,14.46107164]
[1738115865165,0.063,229.57,229.56,15.46107164]
[1738115865861,0.063,229.57,229.56,14.46107164]
[1738115866576,0.063,229.57,229.56,6.4423]
[1738115867674,0.063,229.57,229.54,8.01877164]
[1738115871886,0.063,229.57,229.54,12.37517164]
[1738115873263,0.063,229.57,229.56,8.01877164]
[1738115873880,0.063,229.57,229.56,12.37487164]
[1738115876186,0.063,229.57,229.56,8.02262675]
[1738115877188,0.063,229.57,229.56,12.37872675]
[1738115881368,0.063,229.57,229.56,13.37872675]
[1738115881868,0.063,229.57,229.56,12.37872675]
[1738115884295,0.063,229.57,229.56,13.37872675]
[1738115884690,0.063,229.57,229.56,13.50421675]
[1738115884893,0.063,229.58,229.57,7.2864]
[1738115885069,0.063,229.59,229.58,1.0]
[1738115885269,0.063,229.59,229.58,10.66572675]
[1738115886091,0.063,229.67,229.62,1.0]
[1738115886289,0.063,229.67,229.64,8.02262675]
[1738115886887,0.063,229.67,229.64,12.37722675]
[1738115888090,0.063,229.67,229.63,28.02262675]
[1738115888866,0.063,229.67,229.64,8.02262675]
[1738115889394,0.063,229.67,229.63,28.02262675]
[1738115889587,0.063,229.67,229.63,32.37732675]
[1738115892385,0.063,229.67,229.64,8.02262675]
[1738115892589,0.063,229.67,229.64,12.37722675]
[1738115892896,0.063,229.67,229.64,4.3546]
[1738115900606,0.063,229.67,229.64,12.37722675]
[1738115914619,82.5,229.66,229.61,8.02262675]
[1738115915026,90.52262675,229.66,229.59,8.02262675]
[1738115915500,82.5,229.66,229.6,8.02262675]
[1738115916202,82.5,229.66,229.6,12.37792675]
[1738115917716,82.5,229.64,229.6,12.37792675]
[1738115920821,82.5,229.64,229.6,8.02057216]
[1738115921227,0.063,229.67,229.59,0.03]
[1738115921433,0.063,229.67,229.63,8.02057216]
[1738115921719,0.0001,229.71,229.7,9.75099]
[1738115921931,6.87219674,229.8,229.73,21.0]
[1738115922223,6.87219674,229.8,229.79,8.02057216]
[1738115922830,6.87219674,229.8,229.79,12.37227216]
[1738115923615,0.063,229.8,229.79,12.37227216]
[1738115928721,0.063,229.8,229.79,8.02057216]
[1738115934833,0.063,229.8,229.79,8.00562132]
[1738115936232,0.063,229.8,229.77,8.00562132]
[1738115936425,0.063,229.8,229.75,8.00562132]
[1738115938433,0.063,229.8,229.75,12.35792132]
[1738115938609,0.063,229.8,229.79,8.00562132]
[1738115939016,0.063,229.8,229.79,8.0058475]
[1738115939941,0.063,229.8,229.79,12.3575475]
[1738115944551,0.063,229.8,229.79,44.3809375]
[1738115946761,0.063,229.8,229.79,45.3809375]
[1738115948247,0.063,229.8,229.79,13.3575475]
[1738115951448,0.063,229.8,229.79,12.3575475]
[1738115964258,0.0001,229.8,229.79,46.5064275]
[1738115964439,0.063,229.84,229.82,22.0]
[1738115964634,0.063,229.84,229.82,30.0058475]
[1738115965139,0.063,229.84,229.82,30.1313375]
[1738115965534,0.063,229.84,229.83,0.12549]
[1738115965742,0.063,229.84,229.83,8.1313375]
[1738115965936,0.063,229.88,229.87,1.0]
[1738115966256,0.063,229.88,229.87,9.0058475]
[1738115966844,0.063,229.88,229.87,8.0058475]
[1738115967064,0.063,229.88,229.87,12.3560475]
[1738115967761,0.063,229.88,229.87,8.0058475]
[1738115968461,0.063,229.88,229.87,12.3560475]
[1738115973070,0.063,229.88,229.87,8.0058475]
[1738115973277,0.063,229.88,229.85,8.0058475]
[1738115979760,0.063,229.88,229.85,12.3563475]
[1738115980876,0.063,229.88,229.87,8.0058475]
[1738115983457,0.063,229.88,229.85,12.3564475]
[1738115983658,0.063,229.88,229.85,8.0058475]
[1738115985275,0.063,229.88,229.83,8.0058475]
[1738115986163,0.063,229.88,229.84,8.0058475]
[1738115988087,82.5,229.87,229.81,8.0058475]
[1738115988277,8.0058475,229.85,229.78,8.0058475]
[1738115988973,90.5058475,229.86,229.79,8.0058475]
[1738115989361,82.5,229.86,229.79,8.0058475]
[1738115989559,82.5,229.86,229.8,8.0058475]
[1738115992070,82.5,229.85,229.8,8.00606016]
[1738115994191,82.5,229.85,229.8,8.00613581]
[1738115999986,82.5,229.85,229.8,12.35773581]
[1738116000178,82.5,229.85,229.82,8.00613581]
[1738116000591,82.5,229.85,229.84,8.00613581]
[1738116000892,0.063,229.88,229.84,8.00613581]
[1738116001072,0.063,229.88,229.86,8.00613581]
[1738116002981,0.063,229.88,229.87,8.00613581]
[1738116004578,0.063,229.88,229.87,12.35633581]
[1738116005283,0.063,229.88,229.87,13.35633581]
[1738116005590,0.03,229.93,229.92,20.0]
[1738116005785,0.03,229.93,229.92,28.00613581]
[1738116007089,0.03,229.93,229.92,8.00613581]
[1738116008376,0.03,229.93,229.92,28.00613581]
[1738116011501,0.03,229.93,229.92,8.00613581]
[1738116012394,0.03,229.93,229.92,12.35543581]
[1738116014204,0.03,229.93,229.9,8.00613581]
[1738116014393,0.03,229.93,229.86,8.00613581]
[1738116014588,82.53,229.93,229.86,8.00613581]
[1738116015608,82.53,229.93,229.88,8.00613581]
[1738116016805,82.53,229.93,229.88,12.35613581]
[1738116018404,82.53,229.93,229.9,8.00613581]
[1738116019480,82.53,229.93,229.92,8.00613581]
[1738116019705,0.03,229.93,229.92,8.00613581]
[1738116021787,0.03,229.93,229.92,12.35543581]
[1738116021981,0.03,229.94,229.92,12.35543581]
[1738116021982,0.03,229.94,229.93,2.12549]
[1738116022387,0.03,229.94,229.93,1.12549]
[1738116023486,0.03,229.94,229.93,5.47459]
[1738116024108,0.03,229.94,229.93,6.47459]
[1738116026719,0.03,229.97,229.96,20.0]
[1738116026912,0.03,229.97,229.96,28.00613581]
[1738116028409,0.03,229.97,229.93,8.00613581]
[1738116029313,0.03,229.97,229.91,12.35553581]
[1738116030201,0.03,229.97,229.91,8.00613581]
[1738116031019,0.03,229.97,229.91,12.35563581]
[1738116032221,0.03,229.97,229.91,8.00613581]
[1738116032911,0.03,229.97,229.89,8.00613581]
[1738116033098,8.03613581,229.97,229.89,8.00613581]
[1738116035023,8.03613581,229.97,229.87,8.00613581]
[1738116035206,82.5,229.96,229.87,8.00613581]
[1738116035517,82.5,229.96,229.89,8.00613581]
[1738116037111,82.5,229.96,229.91,8.00613581]
[1738116039721,82.5,229.96,229.89,8.00613581]
[1738116042438,8.03613581,229.97,229.88,4.38]
[1738116042439,0.03,229.97,229.95,8.00613581]
[1738116043927,0.03,229.97,229.96,4.3485]
[1738116046912,0.03,229.97,229.96,6.47399]
[1738116047108,0.03,230.02,229.99,20.0]
[1738116047333,0.03,230.02,230.01,8.00613581]
[1738116048331,0.03,230.02,230.01,12.35373581]
[1738116048714,0.03,230.02,230.01,44.37827905]
[1738116049025,0.03,230.02,230.01,70.28065305]
[1738116049249,0.03,230.06,230.02,23.902374]
[1738116051937,0.03,230.06,230.02,28.249774]
[1738116052737,0.01951512,230.03,230.02,28.249774]
[1738116057225,0.0001,230.05,230.04,44.902374]
[1738116057425,0.0001,230.05,230.04,52.90850981]
[1738116058743,0.0001,230.05,230.04,57.25550981]
[1738116060543,0.063,230.08,230.07,1.12549]
[1738116060742,0.063,230.08,230.07,12.05162581]
[1738116060924,0.03,230.16,230.09,21.0]
[1738116061120,0.03,230.16,230.1,28.00613581]
[1738116062137,0.03,230.16,230.1,56.25440981]
[1738116062445,0.03,230.16,230.12,23.902374]
[1738116062645,0.03,230.16,230.12,31.90850981]
[1738116062942,0.03,230.16,230.12,32.90850981]
[1738116063325,0.03,230.16,230.12,69.27855305]
[1738116063720,0.03,230.16,230.15,44.902374]
[1738116063939,1.6617,230.3,230.19,20.12549]
[1738116064133,1.6617,230.3,230.25,8.00613581]
[1738116064766,82.5,230.33,230.25,8.00613581]
[1738116065048,82.5,230.33,230.26,4.3429]
[1738116065252,1.5574,230.36,230.26,28.245274]
[1738116066024,1.5574,230.36,230.26,29.245274]
[1738116066330,1.5574,230.36,230.26,38.25140981]
[1738116066726,1.5574,230.36,230.26,37.25140981]
[1738116067060,1.5574,230.36,230.26,36.25140981]
[1738116068555,1.5574,230.36,230.26,41.83142066]
[1738116069461,34.24598373,230.39,230.26,49.09232066]
[1738116069661,34.24598373,230.39,230.37,13.58614666]
[1738116069960,34.24598373,230.39,230.35,13.58614666]
[1738116071656,34.24598373,230.39,230.37,13.58614666]
[1738116071954,34.24598373,230.39,230.35,13.58614666]
[1738116073449,34.24598373,230.39,230.35,17.92714666]
[1738116073660,34.24598373,230.39,230.37,13.58614666]
[1738116074855,34.24598373,230.39,230.38,13.58614666]
[1738116075055,34.24598373,230.39,230.38,17.92674666]
[1738116077242,34.24598373,230.39,230.38,13.58614666]
[1738116079163,34.24598373,230.39,230.36,33.58614666]
[1738116081063,34.24598373,230.39,230.38,13.58614666]
[1738116083166,34.24598373,230.39,230.36,13.58614666]
[1738116083761,0.2,230.39,230.36,13.58614666]
[1738116085166,0.23,230.39,230.36,13.58614666]
[1738116088251,0.23,230.39,230.36,17.92714666]
[1738116089277,0.23,230.39,230.36,13.58614666]
[1738116090555,0.23,230.39,230.35,8.69168052]
[1738116091357,0.23,230.39,230.33,8.69168052]
[1738116091671,0.23,230.39,230.31,8.69168052]
[1738116092380,0.23,230.39,230.33,8.69168052]
[1738116095469,1.0,230.46,230.33,8.69168052]
[1738116095470,8.69168052,230.52,230.42,0.12549]
[1738116095657,8.69168052,230.54,230.45,8.69168052]
[1738116095856,82.5,230.6,230.5,8.69168052]
[1738116096070,8.69168052,230.61,230.5,8.69168052]
[1738116096676,13.56019354,230.61,230.5,13.68568354]
[1738116096873,13.56019354,230.61,230.5,13.56019354]
[1738116097066,13.56019354,230.57,230.5,13.56019354]
[1738116097265,13.56019354,230.57,230.48,13.56019354]
[1738116098561,13.56019354,230.55,230.48,13.56019354]
[1738116100173,13.56019354,230.57,230.48,13.56019354]
[1738116100566,13.56019354,230.57,230.5,13.56019354]
[1738116101171,13.56019354,230.59,230.5,13.56019354]
[1738116104269,13.56019354,230.61,230.5,13.56019354]
[1738116104489,26.63019354,230.61,230.5,13.56019354]
[1738116104799,13.56019354,230.6,230.5,13.56019354]
[1738116107813,13.56019354,230.58,230.5,13.56019354]
[1738116110797,13.56019354,230.6,230.5,13.56019354]
[1738116111414,13.56019354,230.6,230.5,13.68568354]
[1738116111727,15.17849354,230.63,230.5,13.68568354]
[1738116112214,0.03,230.63,230.55,2.5346]
[1738116112519,0.03,230.63,230.62,13.56019354]
[1738116113802,0.03,230.63,230.6,13.56019354]
[1738116114401,0.03,230.63,230.58,13.56019354]
[1738116115794,0.03,230.63,230.62,13.56019354]
[1738116116322,0.03,230.63,230.6,13.56019354]
[1738116116503,0.03,230.63,230.6,8.67257234]
[1738116117118,0.03,230.63,230.58,8.67257234]
[1738116119619,0.03,230.63,230.56,2.94]
[1738116119620,0.03,230.63,230.56,11.61257234]
[1738116121935,0.03,230.63,230.6,8.67257234]
[1738116122238,0.03,230.63,230.62,8.67257234]
[1738116122599,0.03,230.63,230.56,2.94]
[1738116122813,13.57871791,230.63,230.55,13.54871791]
[1738116132036,13.57871791,230.63,230.55,13.61171791]
[1738116133346,0.03,230.63,230.57,13.54871791]
[1738116137838,0.03,230.63,230.61,13.54871791]
[1738116139547,0.03,230.63,230.55,13.99096129]
[1738116139839,13.54871791,230.62,230.55,13.99096129]
[1738116140134,0.03,230.63,230.55,13.61171791]
[1738116140331,0.03,230.63,230.57,13.54871791]
[1738116140738,20.03,230.63,230.57,13.54871791]
[1738116140934,20.03,230.63,230.55,13.61171791]
[1738116141516,0.03,230.63,230.57,13.54871791]
[1738116142029,0.03,230.63,230.59,13.54871791]
[1738116143435,0.03,230.63,230.61,13.54871791]
[1738116144154,0.03,230.63,230.62,24.776884]
[1738116144451,0.03,230.63,230.62,32.464684]
[1738116145264,0.03,230.63,230.62,33.590174]
[1738116145563,0.03,230.63,230.62,32.590174]
[1738116146057,0.03,230.63,230.62,32.464684]
[1738116146244,0.03,230.63,230.62,31.464684]
[1738116148748,0.03,230.63,230.61,13.54871791]
[1738116148950,0.03,230.63,230.57,6.89397278]
[1738116149156,0.03,230.63,230.59,13.54871791]
[1738116150478,0.03,230.63,230.58,2.94]
[1738116151063,0.03,230.63,230.59,13.54871791]
[1738116151754,0.03,230.63,230.62,0.12549]
[1738116151961,0.03,230.63,230.62,23.902374]
[1738116154484,0.03,230.63,230.61,13.54871791]
[1738116155074,0.03,230.63,230.62,30.998274]
[1738116155374,0.03,230.63,230.62,51.51169191]
[1738116155775,0.03,230.63,230.62,32.626874]
[1738116156361,0.03,230.63,230.62,46.17559191]
[1738116156664,0.03,230.63,230.62,47.17559191]
[1738116156862,0.03,230.63,230.62,31.626874]